fUSD/lending_fUSD_20260426
["ID","MTS","AMOUNT","RATE_DAILY","PERIOD"]
[421150094,1777168244610,-1000.0,0.00024399,2]
[421150095,1777168244620,-1000.0,0.00024399,2]
[421150096,1777168244630,-1000.0,0.00024399,2]
[421150097,1777168244640,-1000.0,0.00024399,2]
[421150098,1777168244650,-1052.52584284,0.00024399,2]
[421150099,1777168244660,-282.57585166,0.00024399,2]
[421150100,1777168244671,-150.0,0.00024399,7]
[421150101,1777168244681,-2000.0,0.00024399,2]
[421150102,1777168244691,-2000.0,0.00024399,2]
[421150103,1777168244700,-2000.0,0.00024399,2]
[421150104,1777168244710,-288.86988046,0.00024399,2]
[421150105,1777168244720,-500.0,0.00024399,2]
[421150106,1777168244730,-186.0,0.000244,3]
[421150107,1777168244740,-151.0,0.000244,2]
[421150108,1777168244749,-151.0,0.000244,2]
[421150109,1777168244760,-151.0,0.000244,2]
[421150110,1777168244770,-151.0,0.000244,2]
[421150111,1777168244779,-1788.87664247,0.000244,7]
[421150112,1777168244789,-2000.0,0.000244,7]
[421150113,1777168244799,-2204.61790754,0.000244,2]
[421150114,1777168244809,-1532.0,0.000244,2]
[421150115,1777168244820,-153.25811129,0.000244,2]
[421150116,1777168244830,-1532.0,0.000244,2]
[421150117,1777168244840,-300.0,0.000244,2]
[421150118,1777168244850,-1532.0,0.000244,2]
[421150119,1777168244860,-1532.0,0.000244,2]
[421150120,1777168244870,-162.71822381,0.000244,2]
[421150121,1777168244879,-1532.0,0.000244,2]
[421150122,1777168244890,-1532.0,0.000244,2]
[421150123,1777168244914,-777.68990769,0.000244,2]
[421150124,1777168244926,-152.43804012,0.000244,2]
[421150125,1777168244936,-161.0,0.0002441,5]
[421150126,1777168244946,-300.0,0.00024658,2]
[421150127,1777168244956,-300.0,0.00024658,2]
[421150128,1777168244966,-300.0,0.00024658,2]
[421150129,1777168244976,-300.0,0.00024658,2]
[421150130,1777168244987,-300.0,0.00024658,2]
[421150131,1777168244997,-300.0,0.00024658,2]
[421150132,1777168245007,-300.0,0.00024658,2]
[421150133,1777168245017,-300.0,0.00024658,2]
[421150134,1777168245027,-300.0,0.00024658,2]
[421150135,1777168245037,-300.0,0.00024658,2]
[421150136,1777168245047,-300.0,0.00024658,2]
[421150137,1777168245058,-300.0,0.00024658,2]
[421150138,1777168245068,-300.0,0.00024658,2]
[421150139,1777168245078,-300.0,0.00024658,2]
[421150140,1777168245088,-300.0,0.00024658,2]
[421150141,1777168245097,-300.0,0.00024658,2]
[421150142,1777168245107,-300.0,0.00024658,2]
[421150143,1777168245119,-300.0,0.00024658,2]
[421150144,1777168245130,-300.0,0.00024658,2]
[421150145,1777168245140,-300.0,0.00024658,2]
[421150146,1777168245150,-300.0,0.00024658,2]
[421150147,1777168245161,-300.0,0.00024658,2]
[421150148,1777168245171,-300.0,0.00024658,2]
[421150149,1777168245181,-300.0,0.00024658,2]
[421150150,1777168245191,-300.0,0.00024658,2]
[421150151,1777168245204,-300.0,0.00024658,2]
[421150152,1777168245214,-300.0,0.00024658,2]
[421150153,1777168245224,-300.0,0.00024658,2]
[421150154,1777168245234,-300.0,0.00024658,2]
[421150155,1777168245244,-300.0,0.00024658,2]
[421150156,1777168245254,-300.0,0.00024658,2]
[421150157,1777168245264,-300.0,0.00024658,2]
[421150158,1777168245274,-300.0,0.00024658,2]
[421150159,1777168245285,-300.0,0.00024658,2]
[421150160,1777168245300,-300.0,0.00024658,2]
[421150161,1777168245311,-300.0,0.00024658,2]
[421150162,1777168245321,-300.0,0.00024658,2]
[421150163,1777168245331,-300.0,0.00024658,2]
[421150164,1777168245342,-300.0,0.00024658,2]
[421150165,1777168245352,-300.0,0.00024658,2]
[421150166,1777168245362,-300.0,0.00024658,2]
[421150167,1777168245372,-300.0,0.00024658,2]
[421150168,1777168245382,-300.0,0.00024658,2]
[421150169,1777168245392,-300.0,0.00024658,2]
[421150170,1777168245402,-300.0,0.00024658,2]
[421150171,1777168245412,-300.0,0.00024658,2]
[421150172,1777168245422,-300.0,0.00024658,2]
[421150173,1777168245433,-300.0,0.00024658,2]
[421150174,1777168245443,-300.0,0.00024658,2]
[421150175,1777168245453,-300.0,0.00024658,2]
[421150176,1777168245463,-300.0,0.00024658,2]
[421150177,1777168245473,-300.0,0.00024658,2]
[421150178,1777168245483,-300.0,0.00024658,2]
[421150179,1777168245493,-300.0,0.00024658,2]
[421150180,1777168245503,-300.0,0.00024658,2]
[421150181,1777168245513,-300.0,0.00024658,2]
[421150182,1777168245523,-300.0,0.00024658,2]
[421150183,1777168245533,-300.0,0.00024658,2]
[421150184,1777168245544,-300.0,0.00024658,2]
[421150185,1777168245553,-300.0,0.00024658,2]
[421150186,1777168245564,-300.0,0.00024658,2]
[421150187,1777168245573,-300.0,0.00024658,2]
[421150188,1777168245583,-300.0,0.00024658,2]
[421150189,1777168245593,-300.0,0.00024658,2]
[421150190,1777168245604,-300.0,0.00024658,2]
[421150191,1777168245614,-300.0,0.00024658,2]
[421150192,1777168245624,-300.0,0.00024658,2]
[421150193,1777168245634,-300.0,0.00024658,2]
[421150194,1777168245645,-300.0,0.00024658,2]
[421150195,1777168245655,-300.0,0.00024658,2]
[421150196,1777168245665,-300.0,0.00024658,2]
[421150197,1777168245676,-300.0,0.00024658,2]
[421150198,1777168245686,-300.0,0.00024658,2]
[421150199,1777168245702,-300.0,0.00024658,2]
[421150200,1777168245712,-300.0,0.00024658,2]
[421150201,1777168245723,-300.0,0.00024658,2]
[421150202,1777168245733,-300.0,0.00024658,2]
[421150203,1777168245743,-300.0,0.00024658,2]
[421150204,1777168245753,-300.0,0.00024658,2]
[421150205,1777168245764,-300.0,0.00024658,2]
[421150206,1777168245774,-300.0,0.00024658,2]
[421150207,1777168245784,-300.0,0.00024658,2]
[421150208,1777168245795,-300.0,0.00024658,2]
[421150209,1777168245805,-300.0,0.00024658,2]
[421150210,1777168245815,-300.0,0.00024658,2]
[421150211,1777168245825,-300.0,0.00024658,2]
[421150212,1777168245835,-300.0,0.00024658,2]
[421150213,1777168245845,-300.0,0.00024658,2]
[421150214,1777168245856,-300.0,0.00024658,2]
[421150215,1777168245866,-300.0,0.00024658,2]
[421150216,1777168245877,-300.0,0.00024658,2]
[421150217,1777168245887,-300.0,0.00024658,2]
[421150218,1777168245898,-300.0,0.00024658,2]
[421150219,1777168245909,-300.0,0.00024658,2]
[421150220,1777168245919,-300.0,0.00024658,2]
[421150221,1777168245929,-300.0,0.00024658,2]
[421150222,1777168245941,-300.0,0.00024658,2]
[421150223,1777168245952,-150.0,0.00024658,2]
[421150224,1777168245963,-151.0,0.00024658,2]
[421150225,1777168245974,-151.0,0.00024658,2]
[421150226,1777168245985,-228.267501,0.00024658,2]
[421150227,1777168245995,-500.0,0.00024797,2]
[421150228,1777168246006,-211.27167538,0.00024866,112]
[421150229,1777168246018,-1500.0,0.00024868,2]
[421150230,1777168246028,-151.0,0.00024897,7]
[421150231,1777168246039,-151.0,0.00024897,7]
[421150232,1777168246049,-153.21565414,0.00024897,7]
[421150233,1777168246060,-151.0,0.00024897,7]
[421150234,1777168246070,-10000.0,0.000249,2]
[421150235,1777168246085,-600037.178722,0.000249,2]
[421150236,1777168246096,-443.0,0.00025,2]
[421150237,1777168246106,-206.04542609,0.00025,2]
[421150238,1777168246117,-1036.0,0.00025,2]
[421150239,1777168246128,-1337.90604023,0.00025,2]
[421150240,1777168246138,-179.34860982,0.00025,2]
[421150241,1777168246147,-222.71280434,0.00025,2]
[421150242,1777168246158,-314.77424469,0.00025,2]
[421150243,1777168246168,-347.60559577,0.00025,2]
[421150244,1777168246179,-162.24807931,0.00025,7]
[421150245,1777168246190,-506.0,0.00025148,12]
[421150246,1777168246200,-164.01,0.000252,7]
[421150247,1777168246210,-394.46717867,0.00025416,2]
[421150248,1777168246220,-500.0,0.00025425,2]
[421150249,1777168246231,-500.0,0.00025541,2]
[421150250,1777168246241,-150.0,0.0002589,2]
[421150251,1777168246252,-825.0,0.00026287,60]
[421150252,1777168246262,-162.41,0.00026301,2]
[421150253,1777168246272,-500.0,0.00026307,2]
[421150254,1777168246283,-162.24807931,0.000264,3]
[421150255,1777168246293,-155.95167167,0.00026429,2]
[421150256,1777168246303,-280.0,0.00026487,7]
[421150257,1777168246313,-368.89,0.0002662,2]
[421150258,1777168246323,-1347.3935206,0.00026689,2]
[421150259,1777168246334,-6041.728294,0.00026689,2]
[421150260,1777168246345,-368.89,0.00026952,2]
[421150261,1777168246355,-500.0,0.00027097,2]
[421150262,1777168246365,-4273.0,0.00027151,2]
[421150263,1777168246376,-150.0,0.00027185,2]
[421150264,1777168246386,-6898.9004745,0.00027204,2]
[421150265,1777168246397,-37614.1266982,0.00027204,2]
[421150266,1777168246407,-168686.599477,0.00027204,2]
[421150267,1777168246417,-259.423053,0.00027204,2]
[421150268,1777168246428,-259.423053,0.00027204,2]
[421150269,1777168246438,-259.423053,0.00027204,2]
[421150270,1777168246448,-259.423053,0.00027204,2]
[421150271,1777168246459,-151.0,0.00027204,2]
[421150272,1777168246474,-368.88557768,0.00027285,2]
[421150273,1777168246486,-465.46985533,0.00027297,2]
[421150274,1777168246496,-2394.31,0.000273,7]
[421150275,1777168246507,-173.0,0.00027371,2]
[421150276,1777168246518,-151.0,0.00027397,2]
[421150277,1777168246529,-151.0,0.00027397,2]
[421150278,1777168246539,-500.0,0.00027397,2]
[421150279,1777168246550,-1500.0,0.00027397,2]
[421150280,1777168246562,-206.19,0.00027397,2]
[421150281,1777168246573,-238459.25968545,0.000274,7]
[421150282,1777168246583,-5178.22,0.000274,2]
[421150283,1777168246593,-5178.22,0.000274,2]
[421150284,1777168246604,-5178.22,0.000274,2]
[421150285,1777168246615,-5178.22,0.000274,2]
[421150286,1777168246625,-5178.22,0.000274,2]
[421150287,1777168246635,-500.0,0.00027452,2]
[421150288,1777168246647,-500.0,0.00027507,2]
[421150289,1777168246658,-500.0,0.00027562,2]
[421150290,1777168246668,-164.01,0.000276,7]
[421150291,1777168246679,-500.0,0.00027617,2]
[421150292,1777168246689,-500.0,0.00027672,2]
[421150293,1777168246699,-500.0,0.00027727,2]
[421150294,1777168246710,-500.0,0.00027782,2]
[421150295,1777168246720,-500.0,0.00027837,2]
[421150296,1777168246730,-500.0,0.00027892,2]
[421150297,1777168246740,-179908.7,0.000279,7]
[421150298,1777168246751,-500.0,0.0002791,15]
[421150299,1777168246761,-500.0,0.00027947,2]
[421150300,1777168246772,-162.24807931,0.00028,7]
[421150301,1777168246783,-1049.0,0.00028,2]
[421150302,1777168246793,-500.0,0.00028002,2]
[421150303,1777168246803,-506.0,0.00028035,14]
[421150304,1777168246814,-500.0,0.00028057,2]
[421150305,1777168246824,-3985.47680548,0.00028084,120]
[421150306,1777168246835,-2394.31,0.000281,7]
[421150307,1777168246845,-825.0,0.00028383,60]
[421150308,1777168246855,-150.0,0.00028493,30]
[421150309,1777168246866,-156.41,0.00028493,2]
[421150310,1777168246880,-150.0,0.00028544,2]
[421150311,1777168246890,-150.47,0.000286,7]
[421150312,1777168246900,-500.0,0.00028747,17]
[421150313,1777168246910,-964.01639194,0.00028748,2]
[421150314,1777168246920,-162.24807931,0.000288,7]
[421150315,1777168246930,-290.0,0.00028907,2]
[421150316,1777168246940,-150.0,0.00028907,2]
[421150317,1777168246951,-259.0,0.00028907,2]
[421150318,1777168246960,-1049.0,0.00029,2]
[421150319,1777168246971,-219.89242393,0.00029226,7]
[421150320,1777168246981,-670.60029139,0.00029598,85]
[421150321,1777168246991,-151.0,0.000296,7]
[421150322,1777168247001,-206.65104625,0.000296,2]
[421150323,1777168247011,-500.0,0.00029609,18]
[421150324,1777168247022,-1347.3935206,0.00029623,2]
[421150325,1777168247032,-6041.728294,0.00029623,2]
[421150326,1777168247043,-179908.71,0.000297,7]
[421150328,1777168247053,-259.423053,0.000297,7]
[421150329,1777168247063,-259.423053,0.000297,7]
[421150330,1777168247073,-259.423053,0.000297,7]
[421150331,1777168247083,-259.423058,0.000297,7]
[421150332,1777168247093,-151.0,0.000297,3]
[421150333,1777168247104,-900.0,0.000299,10]
[421150334,1777168247114,-2394.31,0.000299,7]
[421150335,1777168247124,-248.0,0.00029946,2]
[421150336,1777168247133,-239.0,0.00029946,2]
[421150337,1777168247144,-150.0,0.00029971,2]
[421150338,1777168247154,-7555.22729502,0.0003,2]
[421150339,1777168247164,-856.24156967,0.0003,120]
[421150340,1777168247175,-264.0,0.0003,14]
[421150341,1777168247185,-1049.0,0.0003,7]
[421150342,1777168247195,-280.0,0.00030156,15]
[421150343,1777168247205,-271.0,0.00030208,2]
[421150344,1777168247215,-150.0,0.00030208,2]
[421150345,1777168247225,-186.0,0.00030208,2]
[421150346,1777168247235,-201.1057418,0.00030211,2]
[421150347,1777168247246,-953.14225634,0.00030211,2]
[421150348,1777168247256,-152.0,0.00030248,5]
[421150350,1777168247266,-179908.7,0.000303,7]
[421150352,1777168247276,-568.85490744,0.00030311,5]
[421150353,1777168247285,-264.0,0.00030411,14]
[421150354,1777168247295,-825.0,0.00030478,60]
[421150355,1777168247306,-500.0,0.00030498,20]
[421150356,1777168247315,-215.8400397,0.00030552,2]
[421150357,1777168247339,-6898.9004745,0.00030653,2]
[421150358,1777168247351,-27466.7045454,0.00030653,2]
[421150359,1777168248821,-501.09453926,0.00027,2]
[421150360,1777168248842,-550.15919947,0.00027,2]
[421150361,1777168248852,-56.44080193,0.00030653,2]
[421150362,1777168248864,-10090.98135087,0.00030653,2]
[421150363,1777168248874,-10951.41989909,0.00030653,2]
[421150364,1777168248886,-7797.00312763,0.00030653,2]
[421150365,1777168248898,-500.0,0.00030653,2]
[421150366,1777168249307,-693.0,0.000201,7]
[421150367,1777168249317,-1496.59487774,0.00027397,10]
[421150368,1777168249992,-7532.3362397,0.00030653,2]
[421150369,1777168250004,-663.7042298,0.00030653,2]
[421150370,1777168250015,-7424.03005529,0.00030653,2]
[421150371,1777168250052,-392.57999984,0.00030653,2]
[421150372,1777168250083,-7144.42255992,0.00030653,2]
[421150373,1777168250095,-644.1737403,0.00030653,2]
[421150374,1777168250106,-500.0,0.00030653,2]
[421150375,1777168250117,-7345.04999991,0.00030653,2]
[421150376,1777168250129,-32031.52631547,0.00030653,2]
[421150377,1777168250148,-13042.61240918,0.00030653,2]
[421150380,1777168930344,10000.01,8e-05,2]
[421150381,1777168930369,10000.01,8e-05,2]
[421150382,1777168930393,10000.01,8e-05,2]
[421150383,1777168930416,10000.01,8e-05,2]
[421150384,1777168930440,10000.01,8e-05,2]
[421150385,1777168930463,10000.01,8e-05,2]
[421150386,1777168930487,10000.01,8e-05,2]
[421150387,1777168930512,6501.84104794,8e-05,2]
[421150391,1777169431614,-256.0,8.129e-05,2]
[421150392,1777169431624,-250.0,8.129e-05,2]
[421150393,1777169431634,-500.0,8.129e-05,2]
[421150394,1777169431644,-344.752932,8.178e-05,2]
[421150395,1777169431653,-280.0,8.219e-05,2]
[421150396,1777169431663,-150.0,8.296e-05,2]
[421150397,1777169431673,-300.0,8.296e-05,2]
[421150398,1777169431682,-79286.08,8.297e-05,2]
[421150399,1777169431692,-217.56,8.355e-05,2]
[421150400,1777169431701,-151.0,8.394e-05,2]
[421150401,1777169431710,-151.0,8.394e-05,2]
[421150402,1777169431720,-1569.494,8.396e-05,2]
[421150403,1777169431729,-171.934,8.396e-05,2]
[421150404,1777169431739,-156.10465859,8.699e-05,2]
[421150405,1777169431748,-500.0,8.699e-05,2]
[421150406,1777169431758,-500.0,8.699e-05,2]
[421150407,1777169431767,-500.0,8.699e-05,2]
[421150408,1777169431777,-219.83530774,8.699e-05,2]
[421150409,1777169431786,-643.14606642,8.699e-05,2]
[421150410,1777169431796,-500.0,8.699e-05,2]
[421150411,1777169431806,-500.0,8.699e-05,2]
[421150412,1777169431815,-477.9678311,8.699e-05,2]
[421150413,1777169431825,-224.36766772,8.699e-05,2]
[421150414,1777169431835,-99252.33023504,8.7e-05,2]
[421150415,1777169431848,-330.5225775,8.7e-05,2]
[421150416,1777169431860,-516.37206645,8.7e-05,2]
[421150417,1777169431875,-663.11669958,8.7e-05,2]
[421150418,1777169431926,-463.04172306,8.7e-05,2]
[421150441,1777169437811,-31764.34136703,8.7e-05,2]
[421150442,1777169437824,-14860.68728384,8.7e-05,2]
[421150443,1777169438127,-2612.22125603,8.7e-05,2]
[421150451,1777169440329,-4600.0,8.7e-05,2]
[421150466,1777169442739,-77552.76285036,8.7e-05,2]
[421150471,1777169442797,-803.80695439,8.7e-05,2]
[421150472,1777169442960,-315.16090927,8.7e-05,2]
[421150473,1777169442978,-206329.62956215,8.7e-05,2]
[421150474,1777169442988,-5000.0,8.942e-05,2]
[421150475,1777169442998,-5000.0,8.942e-05,2]
[421150476,1777169443008,-250.0,8.942e-05,2]
[421150477,1777169443018,-2500.0,8.942e-05,2]
[421150478,1777169443028,-2500.0,8.942e-05,2]
[421150479,1777169443038,-2500.0,8.942e-05,2]
[421150480,1777169443047,-2500.0,8.942e-05,2]
[421150481,1777169443057,-1654.34127768,8.942e-05,2]
[421150482,1777169443067,-500.0,8.942e-05,2]
[421150483,1777169443076,-501.95124807,8.942e-05,2]
[421150484,1777169443086,-331.19587664,8.942e-05,2]
[421150485,1777169443097,-300.0,8.942e-05,2]
[421150486,1777169443107,-300.0,8.942e-05,2]
[421150487,1777169443117,-23685.91776249,9.04e-05,2]
[421150488,1777169443127,-255.0,9.125e-05,2]
[421150489,1777169443136,-420.0,9.125e-05,2]
[421150490,1777169443146,-500.0,9.726e-05,2]
[421150491,1777169443156,-500.0,9.726e-05,2]
[421150492,1777169443166,-500.0,9.726e-05,2]
[421150493,1777169443176,-360.80537458,9.726e-05,2]
[421150494,1777169443186,-150.0,9.726e-05,2]
[421150495,1777169443195,-150.0,9.726e-05,2]
[421150496,1777169443205,-246.48731337,9.726e-05,2]
[421150497,1777169443215,-150.0,9.726e-05,2]
[421150499,1777169443225,-548.0,9.726e-05,2]
[421150501,1777169443235,-548.0,9.726e-05,2]
[421150502,1777169443244,-548.0,9.726e-05,2]
[421150503,1777169443254,-548.0,9.726e-05,2]
[421150504,1777169443263,-548.0,9.726e-05,2]
[421150506,1777169443280,-548.0,9.726e-05,2]
[421150507,1777169443290,-548.0,9.726e-05,2]
[421150508,1777169443300,-548.0,9.726e-05,2]
[421150509,1777169443311,-548.0,9.726e-05,2]
[421150510,1777169443320,-548.0,9.726e-05,2]
[421150511,1777169443330,-548.0,9.726e-05,2]
[421150512,1777169443340,-548.0,9.726e-05,2]
[421150513,1777169443350,-548.0,9.726e-05,2]
[421150514,1777169443359,-548.0,9.726e-05,2]
[421150515,1777169443369,-548.0,9.726e-05,2]
[421150517,1777169443379,-548.0,9.726e-05,2]
[421150518,1777169443390,-548.0,9.726e-05,2]
[421150519,1777169443400,-548.0,9.726e-05,2]
[421150520,1777169443410,-548.0,9.726e-05,2]
[421150521,1777169443419,-548.0,9.726e-05,2]
[421150523,1777169443430,-548.0,9.726e-05,2]
[421150525,1777169443440,-548.0,9.726e-05,2]
[421150527,1777169443450,-548.0,9.726e-05,2]
[421150529,1777169443459,-555.45745872,9.726e-05,2]
[421150531,1777169443469,-1115.49,9.973e-05,2]
[421150533,1777169443479,-279.58,9.973e-05,14]
[421150535,1777169443488,-896.13124671,0.0001,2]
[421150537,1777169443498,-2759.62543384,0.0001,2]
[421150539,1777169443508,-12284.15081766,0.0001,2]
[421150555,1777169445787,-1073.67543408,8.526e-05,2]
[421150556,1777169445797,-1308.14146291,8.526e-05,2]
[421150557,1777169445808,-3919.98328048,0.0001,2]
[421150558,1777169445818,-361.64265766,0.0001,2]
[421150559,1777169445828,-361.64265766,0.0001,2]
[421150560,1777169445839,-361.64265766,0.0001,2]
[421150561,1777169445849,-20126.49958296,0.0001,2]
[421150562,1777169446011,-8542.39,0.0001,2]
[421150563,1777169446046,-1064.41186663,0.0001,2]
[421150564,1777169446058,-3949.06120022,0.0001,2]
[421150565,1777169446075,-78.70735019,0.0001,2]
[421150566,1777169446085,-151.0,0.0001,2]
[421150567,1777169446096,-151.0,0.0001,2]
[421150568,1777169446106,-151.0,0.0001,2]
[421150576,1777169446618,-151.0,0.0001,2]
[421150577,1777169446664,-151.0,0.0001,2]
[421150578,1777169446675,-151.0,0.0001,2]
[421150579,1777169446686,-151.0,0.0001,2]
[421150580,1777169446697,-151.0,0.0001,2]
[421150581,1777169446707,-151.0,0.0001,2]
[421150582,1777169446716,-151.0,0.0001,2]
[421150583,1777169446726,-151.0,0.0001,2]
[421150584,1777169446736,-151.0,0.0001,2]
[421150585,1777169446745,-151.0,0.0001,2]
[421150586,1777169446754,-151.0,0.0001,2]
[421150587,1777169446764,-151.0,0.0001,2]
[421150588,1777169446773,-151.0,0.0001,2]
[421150589,1777169446782,-151.0,0.0001,2]
[421150590,1777169446792,-151.0,0.0001,2]
[421150591,1777169446801,-151.0,0.0001,2]
[421150592,1777169446811,-151.0,0.0001,2]
[421150593,1777169446820,-433.0,0.00010038,2]
[421150594,1777169446830,-587.0,0.00010038,2]
[421150595,1777169446840,-262.10655012,0.000101,2]
[421150596,1777169446849,-1233.16565786,0.00010204,2]
[421150597,1777169446859,-500.0,0.00010426,2]
[421150598,1777169446868,-60.48703072,0.00010426,2]
[421150599,1777169451029,152.0,9.464e-05,30]
[421150600,1777170302480,150.0,7.718e-05,2]
[421150601,1777170302512,150.0,7.84e-05,2]
[421150602,1777170302563,150.0,7.963e-05,2]
[421150603,1777170302635,150.0,8.085e-05,2]
[421150604,1777170306358,150.0,7.718e-05,2]
[421150605,1777170306486,150.0,7.718e-05,2]
[421150606,1777170306656,150.0,7.718e-05,2]
[421150607,1777170306719,150.0,7.861e-05,2]
[421150608,1777170306785,150.0,8.004e-05,2]
[421150609,1777170308840,150.0,7.718e-05,2]
[421150610,1777170308873,150.0,8.004e-05,2]
[421150611,1777170313493,150.0,7.718e-05,2]
[421150612,1777170313546,150.0,7.718e-05,2]
[421150613,1777170313579,150.0,7.789e-05,2]
[421150614,1777170313616,150.0,7.861e-05,2]
[421150615,1777170313656,150.0,7.932e-05,2]
[421150616,1777170313698,150.0,8.004e-05,2]
[421150617,1777170313728,150.0,8.075e-05,2]
[421150618,1777170313898,150.0,7.718e-05,2]
[421150619,1777170315389,150.0,7.718e-05,2]
[421150620,1777170317967,150.0,7.718e-05,2]
[421150621,1777170318008,150.0,7.889e-05,2]
[421150622,1777170318084,150.0,8.061e-05,2]
[421150623,1777170318408,150.0,7.718e-05,2]
[421150624,1777170318451,150.0,7.932e-05,2]
[421150625,1777170325338,150.0,7.718e-05,2]
[421150626,1777170325399,150.0,7.732e-05,2]
[421150627,1777170325466,150.0,7.746e-05,2]
[421150628,1777170325511,150.10254881,7.718e-05,2]
[421150629,1777170325542,150.0,7.76e-05,2]
[421150630,1777170325615,150.0,7.774e-05,2]
[421150631,1777170325679,150.0,7.788e-05,2]
[421150632,1777170325747,150.0,7.802e-05,2]
[421150633,1777170325827,150.0,7.816e-05,2]
[421150634,1777170325890,150.0,7.83e-05,2]
[421150635,1777170325958,150.0,7.844e-05,2]
[421150636,1777170326030,150.0,7.858e-05,2]
[421150637,1777170326105,150.0,7.872e-05,2]
[421150638,1777170326172,150.0,7.887e-05,2]
[421150639,1777170326254,150.0,7.901e-05,2]
[421150640,1777170326328,150.0,7.915e-05,2]
[421150641,1777170326433,150.0,7.929e-05,2]
[421150642,1777170326483,150.0,7.943e-05,2]
[421150643,1777170326533,150.0,7.957e-05,2]
[421150644,1777170326595,150.0,7.971e-05,2]
[421150645,1777170326665,150.0,7.985e-05,2]
[421150646,1777170326735,150.0,7.999e-05,2]
[421150647,1777170326812,150.0,8.013e-05,2]
[421150648,1777170326878,150.0,8.027e-05,2]
[421150649,1777170326947,150.0,8.041e-05,2]
[421150650,1777170327017,150.0,8.055e-05,2]
[421150651,1777170327088,150.0,8.069e-05,2]
[421150652,1777170327158,150.0,8.083e-05,2]
[421150653,1777170327232,150.0,8.097e-05,2]
[421150654,1777170329751,150.0,7.718e-05,2]
[421150655,1777170329783,150.0,7.889e-05,2]
[421150656,1777170329851,150.0,8.061e-05,2]
[421150657,1777170438676,228.67,7.715e-05,2]
[421150659,1777170631855,-150.0,8.111e-05,2]
[421150660,1777170631865,-250.0,8.118e-05,2]
[421150661,1777170631875,-150.0,8.125e-05,2]
[421150662,1777170631886,-171.93425622,8.131e-05,2]
[421150663,1777170631895,-1255.595,8.131e-05,2]
[421150664,1777170631905,-150.0,8.14e-05,2]
[421150665,1777170631915,-150.0,8.147e-05,2]
[421150666,1777170631924,-150.0,8.147e-05,2]
[421150667,1777170631934,-150.0,8.147e-05,2]
[421150668,1777170631944,-150.0,8.147e-05,2]
[421150669,1777170631954,-150.0,8.147e-05,2]
[421150670,1777170631964,-150.0,8.154e-05,2]
[421150671,1777170631973,-150.0,8.168e-05,2]
[421150672,1777170631984,-150.0,8.182e-05,2]
[421150673,1777170631993,-150.0,8.196e-05,2]
[421150674,1777170632002,-1200.0,8.196e-05,2]
[421150675,1777170632012,-150.0,8.196e-05,2]
[421150676,1777170632022,-68593.55982703,8.197e-05,2]
[421150677,1777170632033,-1288.30785659,8.197e-05,2]
[421150678,1777170632045,-278.52586619,8.197e-05,2]
[421150679,1777170632058,-467.29685263,8.197e-05,2]
[421150680,1777170632070,-2891.01579511,8.197e-05,2]
[421150681,1777170632086,-316.11449079,8.197e-05,2]
[421150682,1777170632098,-1075.43,8.197e-05,2]
[421150683,1777170632110,-6945.14459819,8.197e-05,2]
[421150689,1777170638231,-31764.34136703,8.197e-05,2]